fUSD/lending_fUSD_20250211
["ID","MTS","AMOUNT","RATE_DAILY","PERIOD"]
[352728022,1739280646094,-503.89760131,0.00010958,2]
[352728023,1739280646103,-500.0,0.00010958,2]
[352728025,1739280646112,-502.17772149,0.00010958,2]
[352728026,1739280646121,-500.0,0.00010958,2]
[352728028,1739280646131,-500.0,0.00010958,2]
[352728029,1739280646140,-1003.84,0.00010958,2]
[352728030,1739280646150,-500.0,0.00010958,2]
[352728031,1739280646159,-500.0,0.00010958,2]
[352728032,1739280646168,-500.0,0.00010958,2]
[352728033,1739280646178,-509.49068776,0.00010958,2]
[352728034,1739280646187,-501.8188706,0.00010958,2]
[352728035,1739280646196,-345.63469874,0.00010958,2]
[352728036,1739280646206,-500.0,0.00010958,2]
[352728037,1739280646215,-500.0,0.00010958,2]
[352728038,1739280646225,-500.0,0.00010958,2]
[352728039,1739280646234,-500.0,0.00010958,2]
[352728040,1739280646246,-500.0,0.00010958,2]
[352728041,1739280646255,-500.0,0.00010958,2]
[352728042,1739280646264,-509.07773861,0.00010958,2]
[352728043,1739280646274,-500.0,0.00010958,2]
[352728045,1739280646283,-500.0,0.00010958,2]
[352728046,1739280646292,-502.72214065,0.00010958,2]
[352728048,1739280646302,-500.0,0.00010958,2]
[352728050,1739280646312,-500.43183029,0.00010958,2]
[352728053,1739280646321,-500.0,0.00010958,2]
[352728055,1739280646330,-500.0,0.00010958,2]
[352728057,1739280646339,-500.0,0.00010958,2]
[352728059,1739280646349,-500.0,0.00010958,2]
[352728061,1739280646358,-500.0,0.00010958,2]
[352728063,1739280646368,-500.0,0.00010958,2]
[352728065,1739280646377,-583.71,0.00010958,2]
[352728066,1739280646386,-500.0,0.00010958,2]
[352728068,1739280646395,-500.0,0.00010958,2]
[352728070,1739280646405,-500.0,0.00010958,2]
[352728071,1739280646414,-1184.98,0.00010958,2]
[352728072,1739280646424,-500.0,0.00010958,2]
[352728073,1739280646433,-500.0,0.00010958,2]
[352728074,1739280646443,-500.0,0.00010958,2]
[352728075,1739280646453,-505.93038607,0.00010958,2]
[352728076,1739280646463,-502.9691844,0.00010958,2]
[352728077,1739280646473,-501.99635662,0.00010958,2]
[352728078,1739280646483,-500.0,0.00010958,2]
[352728079,1739280646497,-1086.02,0.00010958,2]
[352728080,1739280646507,-500.0,0.00010958,2]
[352728081,1739280646517,-537.67,0.00010958,2]
[352728082,1739280646526,-500.0,0.00010958,2]
[352728083,1739280646536,-500.0,0.00010958,2]
[352728084,1739280646545,-185.54142,0.00010958,2]
[352728085,1739280646555,-781.03,0.00010958,2]
[352728086,1739280646564,-500.0,0.00010958,2]
[352728087,1739280646574,-2420.99,0.00010958,2]
[352728088,1739280646583,-500.0,0.00010958,2]
[352728089,1739280646593,-501.83,0.00010958,2]
[352728090,1739280646602,-500.0,0.00010958,2]
[352728091,1739280646612,-500.0,0.00010958,2]
[352728092,1739280646621,-513.480863,0.00010958,2]
[352728093,1739280646631,-500.0,0.00010958,2]
[352728094,1739280646641,-855.48,0.00010958,2]
[352728095,1739280646651,-500.0,0.00010958,2]
[352728096,1739280646660,-500.0,0.00010958,2]
[352728097,1739280646670,-500.0,0.00010958,2]
[352728098,1739280646681,-156.678706,0.00010958,2]
[352728099,1739280646691,-1000.0,0.00010958,2]
[352728100,1739280646700,-388.95674528,0.00010958,2]
[352728101,1739280646710,-502.86894151,0.00010958,2]
[352728102,1739280646719,-500.0,0.00010958,2]
[352728103,1739280646729,-540.83,0.00010958,2]
[352728104,1739280646741,-500.0,0.00010958,2]
[352728105,1739280646751,-500.0,0.00010958,2]
[352728107,1739280646761,-500.0,0.00010958,2]
[352728109,1739280646770,-610.65,0.00010958,2]
[352728111,1739280646779,-1852.35,0.00010958,2]
[352728112,1739280646789,-512.11002416,0.00010958,2]
[352728113,1739280646798,-500.0,0.00010958,2]
[352728114,1739280646808,-500.0,0.00010958,2]
[352728116,1739280646818,-500.0,0.00010958,2]
[352728117,1739280646829,-537.61625439,0.00010958,2]
[352728118,1739280646838,-500.0,0.00010958,2]
[352728119,1739280646848,-500.0,0.00010958,2]
[352728120,1739280646858,-290.00876003,0.00010958,2]
[352728121,1739280646867,-777.34,0.00010958,2]
[352728122,1739280646877,-500.0,0.00010958,2]
[352728123,1739280646886,-500.0,0.00010958,2]
[352728124,1739280646896,-500.0,0.00010958,2]
[352728125,1739280646905,-2139.5,0.00010958,2]
[352728126,1739280646915,-500.0,0.00010958,2]
[352728127,1739280646925,-979.52,0.00010958,2]
[352728128,1739280646934,-500.0,0.00010958,2]
[352728129,1739280646943,-500.0,0.00010958,2]
[352728130,1739280646952,-500.0,0.00010958,2]
[352728131,1739280646962,-1080.04,0.00010958,2]
[352728132,1739280646971,-500.0,0.00010958,2]
[352728133,1739280646980,-640.51,0.00010958,2]
[352728134,1739280646991,-500.0,0.00010958,2]
[352728135,1739280647000,-977.66,0.00010958,2]
[352728136,1739280647009,-500.0,0.00010958,2]
[352728137,1739280647019,-500.0,0.00010958,2]
[352728138,1739280647028,-500.0,0.00010958,2]
[352728139,1739280647037,-2742.89,0.00010958,2]
[352728140,1739280647047,-500.0,0.00010958,2]
[352728141,1739280647056,-512.01006996,0.00010958,2]
[352728142,1739280647065,-1778.52,0.00010958,2]
[352728143,1739280647074,-500.0,0.00010958,2]
[352728144,1739280647083,-500.0,0.00010958,2]
[352728145,1739280647092,-500.0,0.00010958,2]
[352728146,1739280647101,-500.0,0.00010958,2]
[352728147,1739280647110,-500.0,0.00010958,2]
[352728148,1739280647119,-500.0,0.00010958,2]
[352728149,1739280647128,-502.83734239,0.00010958,2]
[352728150,1739280647137,-503.60552066,0.00010958,2]
[352728151,1739280647146,-500.0,0.00010958,2]
[352728152,1739280647155,-502.19154231,0.00010958,2]
[352728153,1739280647164,-503.51237108,0.00010958,2]
[352728154,1739280647173,-642.23,0.00010958,2]
[352728155,1739280647182,-500.0,0.00010958,2]
[352728156,1739280647191,-1776.94,0.00010958,2]
[352728157,1739280647200,-2559.01,0.00010958,2]
[352728158,1739280647210,-500.0,0.00010958,2]
[352728159,1739280647219,-864.88,0.00010958,2]
[352728160,1739280647230,-505.90778457,0.00010958,2]
[352728161,1739280647241,-500.0,0.00010958,2]
[352728162,1739280647251,-500.0,0.00010958,2]
[352728163,1739280647263,-1265.85,0.00010958,2]
[352728164,1739280647273,-1067.75,0.00010958,2]
[352728165,1739280647283,-500.4673925,0.00010958,2]
[352728166,1739280647292,-500.0,0.00010958,2]
[352728167,1739280647302,-500.0,0.00010958,2]
[352728168,1739280647313,-500.0,0.00010958,2]
[352728169,1739280647322,-500.0,0.00010958,2]
[352728170,1739280647332,-500.73286795,0.00010958,2]
[352728171,1739280647341,-500.0,0.00010958,2]
[352728172,1739280647351,-500.0,0.00010958,2]
[352728173,1739280647361,-500.0,0.00010958,2]
[352728174,1739280647370,-2328.6,0.00010958,2]
[352728175,1739280647380,-731.75,0.00010958,2]
[352728176,1739280647389,-500.0,0.00010958,2]
[352728177,1739280647398,-523.06,0.00010958,2]
[352728178,1739280647407,-1535.06,0.00010958,2]
[352728179,1739280647416,-501.52382882,0.00010958,2]
[352728180,1739280647425,-500.0,0.00010958,2]
[352728181,1739280647435,-500.0,0.00010958,2]
[352728182,1739280647444,-156.792702,0.00010958,2]
[352728183,1739280647454,-500.0,0.00010958,2]
[352728184,1739280647464,-500.0,0.00010958,2]
[352728185,1739280647473,-500.0,0.00010958,2]
[352728186,1739280647482,-176.7473867,0.00010958,2]
[352728187,1739280647494,-683.08,0.00010958,2]
[352728188,1739280647504,-2180.47,0.00010958,2]
[352728189,1739280647514,-442.78704747,0.00010958,2]
[352728190,1739280647523,-1734.23,0.00010958,2]
[352728191,1739280647533,-500.0,0.00010958,2]
[352728192,1739280647542,-500.0,0.00010958,2]
[352728193,1739280647551,-500.0,0.00010958,2]
[352728194,1739280647561,-500.0,0.00010958,2]
[352728195,1739280647570,-500.0,0.00010958,2]
[352728196,1739280647579,-2009.77,0.00010958,2]
[352728197,1739280647588,-500.0,0.00010958,2]
[352728198,1739280647598,-1412.97,0.00010958,2]
[352728199,1739280647607,-1226.28,0.00010958,2]
[352728200,1739280647616,-550.78,0.00010958,2]
[352728201,1739280647625,-500.0,0.00010958,2]
[352728202,1739280647634,-500.0,0.00010958,2]
[352728203,1739280647643,-500.0,0.00010958,2]
[352728204,1739280647653,-673.56,0.00010958,2]
[352728205,1739280647663,-500.0,0.00010958,2]
[352728206,1739280647672,-504.53108556,0.00010958,2]
[352728207,1739280647682,-1506.4,0.00010958,2]
[352728208,1739280647691,-500.0,0.00010958,2]
[352728209,1739280647701,-1062.82,0.00010958,2]
[352728210,1739280647711,-500.0,0.00010958,2]
[352728211,1739280647720,-682.77,0.00010958,2]
[352728212,1739280647729,-500.0,0.00010958,2]
[352728213,1739280647742,-656.38,0.00010958,2]
[352728214,1739280647751,-500.0,0.00010958,2]
[352728215,1739280647761,-500.0,0.00010958,2]
[352728216,1739280647770,-500.0,0.00010958,2]
[352728217,1739280647781,-1042.32,0.00010958,2]
[352728218,1739280647790,-2419.32,0.00010958,2]
[352728219,1739280647800,-1697.73,0.00010958,2]
[352728220,1739280647811,-1312.86,0.00010958,2]
[352728221,1739280647823,-578.5058395,0.00010958,2]
[352728222,1739280647833,-500.0,0.00010958,2]
[352728223,1739280647843,-500.0,0.00010958,2]
[352728224,1739280647853,-665.08,0.00010958,2]
[352728225,1739280647865,-500.0,0.00010958,2]
[352728226,1739280647875,-503.39186551,0.00010958,2]
[352728227,1739280647885,-500.0,0.00010958,2]
[352728228,1739280647897,-1584.61,0.00010958,2]
[352728229,1739280647907,-3381.26,0.00010958,2]
[352728230,1739280647917,-500.0,0.00010958,2]
[352728231,1739280647927,-1246.46,0.00010958,2]
[352728232,1739280647938,-3490.99,0.00010958,2]
[352728233,1739280647948,-500.0,0.00010958,2]
[352728234,1739280647959,-628.89370761,0.00010958,2]
[352728235,1739280647969,-2048.73,0.00010958,2]
[352728236,1739280647979,-1014.75,0.00010958,2]
[352728237,1739280647992,-1827.08,0.00010958,2]
[352728238,1739280648001,-1904.04,0.00010958,2]
[352728239,1739280648011,-500.0,0.00010958,2]
[352728240,1739280648021,-1012.62,0.00010958,2]
[352728241,1739280648031,-500.0,0.00010958,2]
[352728242,1739280648041,-2057.77,0.00010958,2]
[352728243,1739280648051,-2490.54,0.00010958,2]
[352728244,1739280648060,-500.0,0.00010958,2]
[352728245,1739280648070,-500.0,0.00010958,2]
[352728246,1739280648080,-535.14988683,0.00010958,2]
[352728247,1739280648090,-2665.93,0.00010958,2]
[352728248,1739280648101,-1884.66,0.00010958,2]
[352728249,1739280648111,-2212.08,0.00010958,2]
[352728250,1739280648122,-1783.85,0.00010958,2]
[352728251,1739280648133,-2153.24,0.00010958,2]
[352728252,1739280648143,-500.0,0.00010958,2]
[352728253,1739280648154,-218.21326766,0.00010958,2]
[352728254,1739280648164,-1538.62,0.00010958,2]
[352728255,1739280648175,-500.0,0.00010958,2]
[352728256,1739280648186,-1386.47,0.00010958,2]
[352728257,1739280648195,-500.0,0.00010958,2]
[352728258,1739280648205,-1196.09,0.00010958,2]
[352728259,1739280648216,-500.0,0.00010958,2]
[352728260,1739280648225,-500.0,0.00010958,2]
[352728261,1739280648235,-1828.07,0.00010958,2]
[352728262,1739280648247,-880.19,0.00010958,2]
[352728263,1739280648258,-2100.82,0.00010958,2]
[352728264,1739280648269,-500.0,0.00010958,2]
[352728265,1739280648279,-541.74294832,0.00010958,2]
[352728266,1739280648289,-500.0,0.00010958,2]
[352728267,1739280648300,-2410.54,0.00010958,2]
[352728268,1739280648311,-1422.19,0.00010958,2]
[352728269,1739280648322,-2100.84,0.00010958,2]
[352728270,1739280648333,-2899.84,0.00010958,2]
[352728271,1739280648348,-500.0,0.00010958,2]
[352728272,1739280648359,-1035.54,0.00010958,2]
[352728273,1739280648369,-501.73181401,0.00010958,2]
[352728274,1739280648379,-1311.0,0.00010958,2]
[352728275,1739280648389,-500.0,0.00010958,2]
[352728276,1739280648399,-2817.66,0.00010958,2]
[352728277,1739280648409,-2368.17,0.00010958,2]
[352728278,1739280648419,-601.98,0.00010958,2]
[352728279,1739280648429,-500.0,0.00010958,2]
[352728280,1739280648439,-500.0,0.00010958,2]
[352728281,1739280648449,-500.0,0.00010958,2]
[352728282,1739280648459,-2822.88,0.00010958,2]
[352728283,1739280648470,-653.12,0.00010958,2]
[352728284,1739280648480,-500.0,0.00010958,2]
[352728285,1739280648491,-2058.67,0.00010958,2]
[352728286,1739280648501,-1606.08,0.00010958,2]
[352728287,1739280648512,-5880.42,0.00010958,2]
[352728288,1739280648522,-2313.56,0.00010958,2]
[352728289,1739280648533,-504.16,0.00010958,2]
[352728290,1739280648543,-2017.66,0.00010958,2]
[352728291,1739280648553,-500.0,0.00010958,2]
[352728292,1739280648563,-2277.98,0.00010958,2]
[352728293,1739280648574,-2422.38,0.00010958,2]
[352728294,1739280648585,-500.0,0.00010958,2]
[352728295,1739280648595,-503.18359733,0.00010958,2]
[352728296,1739280648605,-1974.18,0.00010958,2]
[352728297,1739280648616,-501.96117527,0.00010958,2]
[352728298,1739280648626,-500.0,0.00010958,2]
[352728299,1739280648637,-268.47981067,0.00010958,2]
[352728300,1739280648647,-3082.41,0.00010958,2]
[352728301,1739280648658,-1100.82,0.00010958,2]
[352728302,1739280648669,-500.0,0.00010958,2]
[352728303,1739280648679,-500.0,0.00010958,2]
[352728304,1739280648690,-500.0,0.00010958,2]
[352728305,1739280648700,-500.0,0.00010958,2]
[352728306,1739280648710,-500.0,0.00010958,2]
[352728307,1739280648721,-2794.0,0.00010958,2]
[352728308,1739280648732,-7557.63,0.00010958,2]
[352728309,1739280648742,-500.0,0.00010958,2]
[352728310,1739280648753,-500.0,0.00010958,2]
[352728311,1739280648764,-1514.59,0.00010958,2]
[352728312,1739280648774,-2758.32,0.00010958,2]
[352728313,1739280648784,-384.75407931,0.00010958,2]
[352728314,1739280648794,-500.0,0.00010958,2]
[352728315,1739280648804,-2055.38,0.00010958,2]
[352728316,1739280648814,-607.93,0.00010958,2]
[352728317,1739280648828,-3126.71,0.00010958,2]
[352728318,1739280648838,-500.0,0.00010958,2]
[352728319,1739280648848,-525.3976657,0.00010958,2]
[352728320,1739280648860,-501.36275635,0.00010958,2]
[352728321,1739280648870,-500.0,0.00010958,2]
[352728322,1739280648881,-502.30810413,0.00010958,2]
[352728323,1739280648892,-1738.57,0.00010958,2]
[352728324,1739280648903,-3061.52,0.00010958,2]
[352728325,1739280648914,-5522.4,0.00010958,2]
[352728326,1739280648924,-1936.33,0.00010958,2]
[352728327,1739280648935,-500.0,0.00010958,2]
[352728328,1739280648945,-561.93246369,0.00010958,2]
[352728329,1739280648955,-500.0,0.00010958,2]
[352728330,1739280648966,-500.0,0.00010958,2]
[352728331,1739280648976,-500.0,0.00010958,2]
[352728332,1739280648988,-2020.21,0.00010958,2]
[352728333,1739280648999,-500.0,0.00010958,2]
[352728334,1739280649009,-1943.41,0.00010958,2]
[352728335,1739280649019,-500.0,0.00010958,2]
[352728336,1739280649030,-500.0,0.00010958,2]
[352728337,1739280649040,-500.0,0.00010958,2]
[352728338,1739280649049,-500.0,0.00010958,2]
[352728339,1739280649059,-620.19,0.00010958,2]
[352728340,1739280649069,-1254.85,0.00010958,2]
[352728341,1739280649079,-2345.35,0.00010958,2]
[352728342,1739280649090,-500.0,0.00010958,2]
[352728343,1739280649100,-595.71,0.00010958,2]
[352728344,1739280649110,-500.52902449,0.00010958,2]
[352728345,1739280649120,-500.0,0.00010958,2]
[352728346,1739280649129,-500.0,0.00010958,2]
[352728347,1739280649139,-471.55421426,0.00010958,2]
[352728348,1739280649150,-500.0,0.00010958,2]
[352728349,1739280649161,-2480.99,0.00010958,2]
[352728350,1739280649171,-500.0,0.00010958,2]
[352728351,1739280649182,-501.22687295,0.00010958,2]
[352728352,1739280649193,-500.0,0.00010958,2]
[352728353,1739280649203,-2449.61,0.00010958,2]
[352728354,1739280649215,-507.03117194,0.00010958,2]
[352728355,1739280649238,-1287.43,0.00010958,2]
[352728356,1739280649250,-1906.34,0.00010958,2]
[352728357,1739280649261,-514.22813193,0.00010958,2]
[352728358,1739280649271,-500.0,0.00010958,2]
[352728359,1739280649281,-500.0,0.00010958,2]
[352728360,1739280649292,-3659.02,0.00010958,2]
[352728361,1739280649303,-500.0,0.00010958,2]
[352728362,1739280649313,-500.0,0.00010958,2]
[352728363,1739280649324,-509.03234938,0.00010958,2]
[352728364,1739280649336,-1032.52,0.00010958,2]
[352728365,1739280649346,-1960.7,0.00010958,2]
[352728366,1739280649357,-2782.88,0.00010958,2]
[352728367,1739280649368,-500.0,0.00010958,2]
[352728368,1739280649378,-651.56,0.00010958,2]
[352728369,1739280649389,-500.0,0.00010958,2]
[352728370,1739280649400,-500.0,0.00010958,2]
[352728371,1739280649411,-500.0,0.00010958,2]
[352728372,1739280649422,-1504.96,0.00010958,2]
[352728373,1739280649434,-500.0,0.00010958,2]
[352728374,1739280649444,-3416.78,0.00010958,2]
[352728375,1739280649455,-1015.34,0.00010958,2]
[352728376,1739280649466,-2046.98,0.00010958,2]
[352728377,1739280649476,-1377.43,0.00010958,2]
[352728378,1739280649487,-500.0,0.00010958,2]
[352728379,1739280649498,-504.89483573,0.00010958,2]
[352728380,1739280649509,-2234.59,0.00010958,2]
[352728381,1739280649519,-3062.88,0.00010958,2]
[352728382,1739280649530,-504.92760412,0.00010958,2]
[352728383,1739280649539,-500.79430067,0.00010958,2]
[352728384,1739280649549,-500.0,0.00010958,2]
[352728385,1739280649560,-566.25,0.00010958,2]
[352728386,1739280649570,-997.32,0.00010958,2]
[352728387,1739280649581,-642.41,0.00010958,2]
[352728388,1739280649591,-456.1322293,0.00010958,2]
[352728389,1739280649601,-1701.55,0.00010958,2]
[352728390,1739280649828,-500.0,0.00010958,2]
[352728391,1739280649837,-500.0,0.00010958,2]
[352728392,1739280649847,-503.70204028,0.00010958,2]
[352728393,1739280649856,-500.0,0.00010958,2]
[352728394,1739280649871,-1261.12,0.00010958,2]
[352728395,1739280649881,-2171.57,0.00010958,2]
[352728396,1739280649891,-961.29,0.00010958,2]
[352728397,1739280649901,-856.37,0.00010958,2]
[352728398,1739280649910,-613.02197224,0.00010958,2]
[352728399,1739280649920,-500.45145198,0.00010958,2]
[352728400,1739280649931,-1815.54,0.00010958,2]
[352728401,1739280649940,-580.8983735,0.00010958,2]
[352728402,1739280649949,-341.91799751,0.00010958,2]
[352728403,1739280649959,-500.0,0.00010958,2]
[352728404,1739280649968,-528.93936446,0.00010958,2]
[352728405,1739280649977,-508.00256875,0.00010958,2]
[352728406,1739280649986,-1456.22,0.00010958,2]
[352728407,1739280649996,-500.0,0.00010958,2]
[352728408,1739280650005,-1262.09,0.00010958,2]
[352728409,1739280650015,-673.71,0.00010958,2]
[352728410,1739280650025,-500.0,0.00010958,2]
[352728411,1739280650033,-500.0,0.00010958,2]
[352728412,1739280650043,-500.0,0.00010958,2]
[352728413,1739280650052,-3429.56,0.00010958,2]
[352728414,1739280650061,-500.0,0.00010958,2]
[352728415,1739280650070,-346.18986329,0.00010958,2]
[352728416,1739280650079,-938.97,0.00010958,2]
[352728417,1739280650088,-500.0,0.00010958,2]
[352728418,1739280650097,-500.0,0.00010958,2]
[352728419,1739280650106,-1121.86,0.00010958,2]
[352728420,1739280650115,-501.80396869,0.00010958,2]
[352728421,1739280650125,-775.76,0.00010958,2]
[352728422,1739280650134,-500.0,0.00010958,2]
[352728423,1739280650143,-1626.39,0.00010958,2]
[352728424,1739280650152,-223.60925343,0.00010958,2]
[352728425,1739280650161,-500.0,0.00010958,2]
[352728426,1739280650170,-1109.73,0.00010958,2]
[352728427,1739280650178,-500.0,0.00010958,2]
[352728428,1739280650187,-500.0,0.00010958,2]
[352728429,1739280650196,-500.0,0.00010958,2]
[352728430,1739280650205,-500.0,0.00010958,2]
[352728431,1739280650214,-500.0,0.00010958,2]
[352728432,1739280650224,-504.09828916,0.00010958,2]
[352728433,1739280650233,-509.7895694,0.00010958,2]
[352728434,1739280650243,-500.0,0.00010958,2]
[352728435,1739280650252,-500.0,0.00010958,2]
[352728436,1739280650262,-509.38576358,0.00010958,2]
[352728437,1739280650272,-500.0,0.00010958,2]
[352728438,1739280650280,-75842.69027195,0.00010958,2]
[352728439,1739280650290,-1000.0,0.00010958,2]
[352728440,1739280650299,-1000.0,0.00010958,2]
[352728441,1739280650308,-1000.0,0.00010958,2]
[352728442,1739280650317,-1000.0,0.00010958,2]
[352728443,1739280650327,-1000.0,0.00010958,2]
[352728444,1739280650336,-1000.0,0.00010958,2]
[352728445,1739280650345,-1000.0,0.00010958,2]
[352728446,1739280650355,-1000.0,0.00010958,2]
[352728447,1739280650364,-1000.0,0.00010958,2]
[352728448,1739280650373,-1000.0,0.00010958,2]
[352728449,1739280650383,-1000.0,0.00010958,2]
[352728450,1739280650392,-1000.0,0.00010958,2]
[352728451,1739280650402,-1000.0,0.00010958,2]
[352728452,1739280650411,-1000.0,0.00010958,2]
[352728453,1739280650420,-1000.0,0.00010958,2]
[352728454,1739280650429,-1000.0,0.00010958,2]
[352728455,1739280650437,-1000.0,0.00010958,2]
[352728456,1739280650446,-1000.0,0.00010958,2]
[352728457,1739280650455,-1000.0,0.00010958,2]
[352728458,1739280650464,-1000.0,0.00010958,2]
[352728459,1739280650473,-1000.0,0.00010958,2]
[352728460,1739280650481,-1000.0,0.00010958,2]
[352728461,1739280650491,-1000.0,0.00010958,2]
[352728462,1739280650500,-1000.0,0.00010958,2]
[352728463,1739280650509,-1000.0,0.00010958,2]
[352728464,1739280650518,-1000.0,0.00010958,2]
[352728465,1739280650527,-1000.0,0.00010958,2]
[352728466,1739280650536,-1000.0,0.00010958,2]
[352728467,1739280650545,-1000.0,0.00010958,2]
[352728468,1739280650554,-1000.0,0.00010958,2]
[352728469,1739280650563,-1000.0,0.00010958,2]
[352728470,1739280650572,-1000.0,0.00010958,2]
[352728471,1739280650581,-1000.0,0.00010958,2]
[352728472,1739280650590,-1000.0,0.00010958,2]
[352728473,1739280650599,-1000.0,0.00010958,2]
[352728474,1739280650608,-1000.0,0.00010958,2]
[352728475,1739280650618,-1000.0,0.00010958,2]
[352728476,1739280650627,-1000.0,0.00010958,2]
[352728477,1739280650635,-1000.0,0.00010958,2]
[352728478,1739280650644,-1000.0,0.00010958,2]
[352728479,1739280650654,-1000.0,0.00010958,2]
[352728480,1739280650663,-1000.0,0.00010958,2]
[352728481,1739280650672,-1000.0,0.00010958,2]
[352728482,1739280650681,-1000.0,0.00010958,2]
[352728483,1739280650690,-1000.0,0.00010958,2]
[352728484,1739280650699,-1000.0,0.00010958,2]
[352728485,1739280650708,-1000.0,0.00010958,2]
[352728486,1739280650717,-1000.0,0.00010958,2]
[352728487,1739280650727,-1000.0,0.00010958,2]
[352728488,1739280650736,-1000.0,0.00010958,2]
[352728489,1739280650745,-1000.0,0.00010958,2]
[352728490,1739280650755,-1000.0,0.00010958,2]
[352728491,1739280650764,-1000.0,0.00010958,2]
[352728492,1739280650773,-1000.0,0.00010958,2]
[352728493,1739280650783,-1000.0,0.00010958,2]
[352728494,1739280650791,-1000.0,0.00010958,2]
[352728495,1739280650801,-1000.0,0.00010958,2]
[352728496,1739280650810,-1000.0,0.00010958,2]
[352728497,1739280650821,-1000.0,0.00010958,2]
[352728498,1739280650831,-1000.0,0.00010958,2]
[352728499,1739280650840,-1000.0,0.00010958,2]
[352728500,1739280650848,-1000.0,0.00010958,2]
[352728501,1739280650857,-1000.0,0.00010958,2]
[352728502,1739280650866,-1000.0,0.00010958,2]
[352728503,1739280650875,-1000.0,0.00010958,2]
[352728504,1739280650884,-1000.0,0.00010958,2]
[352728505,1739280650893,-1000.0,0.00010958,2]
[352728506,1739280650903,-1000.0,0.00010958,2]
[352728507,1739280650913,-1000.0,0.00010958,2]
[352728508,1739280650923,-1000.0,0.00010958,2]
[352728509,1739280650932,-1000.0,0.00010958,2]
[352728510,1739280650943,-1000.0,0.00010958,2]
[352728511,1739280650952,-1000.0,0.00010958,2]
[352728512,1739280650960,-1000.0,0.00010958,2]
[352728513,1739280650970,-1000.0,0.00010958,2]
[352728514,1739280650979,-1000.0,0.00010958,2]
[352728515,1739280650988,-1000.0,0.00010958,2]
[352728516,1739280650997,-1000.0,0.00010958,2]
[352728517,1739280651007,-1000.0,0.00010958,2]
[352728518,1739280651016,-1000.0,0.00010958,2]
[352728519,1739280651025,-1000.0,0.00010958,2]
[352728520,1739280651034,-1000.0,0.00010958,2]
[352728521,1739280651043,-1000.0,0.00010958,2]
[352728522,1739280651052,-1000.0,0.00010958,2]
[352728523,1739280651061,-1000.0,0.00010958,2]
[352728524,1739280651069,-1000.0,0.00010958,2]
[352728525,1739280651078,-1000.0,0.00010958,2]
[352728526,1739280651088,-1000.0,0.00010958,2]
[352728527,1739280651098,-1000.0,0.00010958,2]
[352728528,1739280651107,-1000.0,0.00010958,2]
[352728529,1739280651116,-1000.0,0.00010958,2]
[352728530,1739280651125,-1000.0,0.00010958,2]
[352728531,1739280651134,-1000.0,0.00010958,2]
[352728532,1739280651143,-1000.0,0.00010958,2]
[352728533,1739280651153,-1000.0,0.00010958,2]
[352728534,1739280651162,-1000.0,0.00010958,2]
[352728535,1739280651171,-1000.0,0.00010958,2]
[352728536,1739280651179,-1000.0,0.00010958,2]
[352728537,1739280651188,-1000.0,0.00010958,2]
[352728538,1739280651198,-1000.0,0.00010958,2]
[352728539,1739280651207,-533.57996638,0.00010958,2]
[352728540,1739280651215,-496.0131822,0.00010995,2]